fUST/lending_fUST_20250729
["ID","MTS","AMOUNT","RATE_DAILY","PERIOD"]
[375765492,1753734641165,-460.0,0.00019726,2]
[375765494,1753734641176,-460.0,0.00019726,2]
[375765496,1753734641186,-460.0,0.00019726,2]
[375765498,1753734641195,-460.0,0.00019726,2]
[375765500,1753734641205,-460.0,0.00019726,2]
[375765502,1753734641214,-460.0,0.00019726,2]
[375765504,1753734641224,-460.0,0.00019726,2]
[375765506,1753734641233,-460.0,0.00019726,2]
[375765508,1753734641243,-461.97,0.00019726,2]
[375765509,1753734641252,-460.0,0.00019726,2]
[375765511,1753734641262,-460.0,0.00019726,2]
[375765513,1753734641271,-460.0,0.00019726,2]
[375765516,1753734641282,-460.0,0.00019726,2]
[375765517,1753734641291,-460.0,0.00019726,2]
[375765519,1753734641301,-595.51,0.00019726,2]
[375765521,1753734641314,-460.0,0.00019726,2]
[375765523,1753734641324,-460.0,0.00019726,2]
[375765525,1753734641334,-2531.55,0.00019726,2]
[375765528,1753734641344,-460.0,0.00019726,2]
[375765529,1753734641354,-460.0,0.00019726,2]
[375765531,1753734641364,-460.0,0.00019726,2]
[375765533,1753734641374,-460.0,0.00019726,2]
[375765535,1753734641383,-460.0,0.00019726,2]
[375765537,1753734641394,-460.0,0.00019726,2]
[375765539,1753734641404,-460.0,0.00019726,2]
[375765541,1753734641413,-460.0,0.00019726,2]
[375765543,1753734641423,-475.06,0.00019726,2]
[375765545,1753734641432,-4675.54,0.00019726,2]
[375765546,1753734641442,-460.0,0.00019726,2]
[375765548,1753734641451,-460.0,0.00019726,2]
[375765550,1753734641461,-1258.53,0.00019726,2]
[375765552,1753734641470,-460.0,0.00019726,2]
[375765554,1753734641480,-460.0,0.00019726,2]
[375765556,1753734641490,-232.01,0.00019726,2]
[375765558,1753734641499,-460.0,0.00019726,2]
[375765560,1753734641508,-460.0,0.00019726,2]
[375765562,1753734641518,-460.0,0.00019726,2]
[375765564,1753734641528,-1755.01,0.00019726,2]
[375765566,1753734641538,-460.0,0.00019726,2]
[375765568,1753734641547,-460.0,0.00019726,2]
[375765570,1753734641557,-460.0,0.00019726,2]
[375765571,1753734641568,-460.0,0.00019726,2]
[375765573,1753734641578,-460.0,0.00019726,2]
[375765575,1753734641587,-460.0,0.00019726,2]
[375765577,1753734641597,-460.0,0.00019726,2]
[375765579,1753734641606,-460.0,0.00019726,2]
[375765581,1753734641616,-460.0,0.00019726,2]
[375765583,1753734641626,-460.0,0.00019726,2]
[375765585,1753734641636,-1282.88,0.00019726,2]
[375765587,1753734641645,-460.0,0.00019726,2]
[375765589,1753734641654,-886.06,0.00019726,2]
[375765591,1753734641663,-460.0,0.00019726,2]
[375765593,1753734641673,-460.0,0.00019726,2]
[375765595,1753734641683,-460.0,0.00019726,2]
[375765597,1753734641693,-1224.61,0.00019726,2]
[375765599,1753734641702,-460.0,0.00019726,2]
[375765600,1753734641712,-460.0,0.00019726,2]
[375765602,1753734641722,-1200.95,0.00019726,2]
[375765604,1753734641732,-460.0,0.00019726,2]
[375765606,1753734641744,-460.0,0.00019726,2]
[375765608,1753734641755,-460.0,0.00019726,2]
[375765610,1753734641764,-460.0,0.00019726,2]
[375765612,1753734641774,-460.0,0.00019726,2]
[375765614,1753734641787,-1270.16,0.00019726,2]
[375765616,1753734641797,-801.31,0.00019726,2]
[375765618,1753734641807,-460.0,0.00019726,2]
[375765619,1753734641820,-460.0,0.00019726,2]
[375765621,1753734641832,-460.0,0.00019726,2]
[375765623,1753734641842,-460.0,0.00019726,2]
[375765625,1753734641852,-211.2777497,0.00019726,2]
[375765627,1753734641862,-460.0,0.00019726,2]
[375765629,1753734641871,-460.0,0.00019726,2]
[375765631,1753734641881,-483.87930488,0.00019726,2]
[375765633,1753734641890,-460.0,0.00019726,2]
[375765635,1753734641899,-460.0,0.00019726,2]
[375765637,1753734641909,-1849.9,0.00019726,2]
[375765639,1753734641918,-460.0,0.00019726,2]
[375765640,1753734641928,-460.0,0.00019726,2]
[375765642,1753734641938,-460.0,0.00019726,2]
[375765644,1753734641947,-460.0,0.00019726,2]
[375765646,1753734641956,-1612.46293545,0.00019899,2]
[375765648,1753734641966,-500.0,0.00019973,2]
[375765650,1753734641975,-500.0,0.00019973,2]
[375765652,1753734641985,-100000.0,0.0001999,2]
[375765654,1753734641995,-460.0,0.00019999,2]
[375765656,1753734642005,-558.96,0.00019999,2]
[375765658,1753734642015,-460.0,0.00019999,2]
[375765660,1753734642024,-460.0,0.0002,2]
[375765661,1753734642034,-460.0,0.0002,2]
[375765663,1753734642043,-460.0,0.0002,2]
[375765665,1753734642053,-1512.42,0.0002,2]
[375765667,1753734642063,-460.0,0.0002,2]
[375765669,1753734642073,-460.0,0.0002,2]
[375765671,1753734642082,-233.04724231,0.0002,2]
[375765673,1753734642091,-460.0,0.0002,2]
[375765675,1753734642100,-460.0,0.0002,2]
[375765677,1753734642110,-460.0,0.0002,2]
[375765679,1753734642119,-460.0,0.0002,2]
[375765681,1753734642129,-460.0,0.0002,2]
[375765683,1753734642139,-460.0,0.0002,2]
[375765684,1753734642148,-460.0,0.0002,2]
[375765687,1753734642158,-460.0,0.0002,2]
[375765690,1753734642181,-2531.55,0.0002,2]
[375765691,1753734642191,-460.0,0.0002,2]
[375765693,1753734642201,-460.0,0.0002,2]
[375765695,1753734642212,-460.0,0.0002,2]
[375765697,1753734642222,-460.0,0.0002,2]
[375765699,1753734642232,-460.0,0.0002,2]
[375765701,1753734642243,-460.0,0.0002,2]
[375765703,1753734642253,-460.0,0.0002,2]
[375765705,1753734642263,-460.0,0.0002,2]
[375765707,1753734642273,-475.06,0.0002,2]
[375765709,1753734642283,-4675.54,0.0002,2]
[375765711,1753734642293,-460.0,0.0002,2]
[375765713,1753734642302,-460.0,0.0002,2]
[375765715,1753734642315,-1258.53,0.0002,2]
[375765717,1753734642324,-460.0,0.0002,2]
[375765719,1753734642335,-460.0,0.0002,2]
[375765721,1753734642344,-460.0,0.0002,2]
[375765722,1753734642354,-460.0,0.0002,2]
[375765724,1753734642364,-460.0,0.0002,2]
[375765726,1753734642374,-1755.01,0.0002,2]
[375765728,1753734642384,-460.0,0.0002,2]
[375765730,1753734642394,-460.0,0.0002,2]
[375765732,1753734642404,-150.00037004,0.0002,7]
[375765734,1753734642414,-460.0,0.0002,2]
[375765736,1753734642423,-460.0,0.0002,2]
[375765755,1753734642610,-460.0,0.0002,2]
[375765757,1753734642620,-7800.0,0.0002,7]
[375765759,1753734642631,-460.0,0.0002,2]
[375765761,1753734642641,-460.0,0.0002,2]
[375765763,1753734642651,-460.0,0.0002,2]
[375765765,1753734642661,-460.0,0.0002,2]
[375765767,1753734642671,-460.0,0.0002,2]
[375765769,1753734642680,-173.72,0.0002,2]
[375765771,1753734642690,-1282.88,0.0002,2]
[375765773,1753734642700,-460.0,0.0002,2]
[375765775,1753734642710,-886.06,0.0002,2]
[375765777,1753734642720,-460.0,0.0002,2]
[375765779,1753734642737,-460.0,0.0002,2]
[375765782,1753734642757,-460.0,0.0002,2]
[375765783,1753734642779,-1224.61,0.0002,2]
[375765785,1753734642790,-460.0,0.0002,2]
[375765787,1753734642800,-460.0,0.0002,2]
[375765789,1753734642836,-1200.95,0.0002,2]
[375765791,1753734642847,-460.0,0.0002,2]
[375765794,1753734642858,-460.0,0.0002,2]
[375765796,1753734642867,-460.0,0.0002,2]
[375765797,1753734642880,-460.0,0.0002,2]
[375765799,1753734642889,-460.0,0.0002,2]
[375765801,1753734642902,-1270.16,0.0002,2]
[375765803,1753734642912,-801.31,0.0002,2]
[375765805,1753734642923,-283.9040737,0.0002,2]
[375765807,1753734642934,-460.0,0.0002,2]
[375765809,1753734642943,-460.0,0.0002,2]
[375765811,1753734642953,-460.0,0.0002,2]
[375765813,1753734642962,-460.0,0.0002,2]
[375765816,1753734642974,-460.0,0.0002,2]
[375765819,1753734642984,-1849.9,0.0002,2]
[375765822,1753734642994,-460.0,0.0002,2]
[375765826,1753734643003,-460.0,0.0002,2]
[375765830,1753734643012,-460.0,0.0002,2]
[375765834,1753734643022,-460.0,0.0002,2]
[375765838,1753734643032,-196.55369868,0.0002011,2]
[375765840,1753734643041,-440.940583,0.00020187,2]
[375765842,1753734643051,-460.0,0.00020273,2]
[375765844,1753734643061,-460.0,0.00020273,2]
[375765846,1753734643071,-1512.42,0.00020273,2]
[375765848,1753734643080,-460.0,0.00020273,2]
[375765850,1753734643089,-460.0,0.00020273,2]
[375765852,1753734643099,-460.0,0.00020273,2]
[375765854,1753734643109,-460.0,0.00020273,2]
[375765856,1753734643119,-460.0,0.00020273,2]
[375765858,1753734643129,-460.0,0.00020273,2]
[375765860,1753734643138,-460.0,0.00020273,2]
[375765862,1753734643148,-460.0,0.00020273,2]
[375765863,1753734643158,-460.0,0.00020273,2]
[375765865,1753734643168,-460.98261504,0.00020273,2]
[375765867,1753734643177,-2531.55,0.00020273,2]
[375765869,1753734643186,-460.0,0.00020273,2]
[375765871,1753734643196,-460.0,0.00020273,2]
[375765873,1753734643206,-460.0,0.00020273,2]
[375765875,1753734643216,-460.0,0.00020273,2]
[375765877,1753734643226,-460.0,0.00020273,2]
[375765879,1753734643235,-460.0,0.00020273,2]
[375765881,1753734643244,-475.06,0.00020273,2]
[375765883,1753734643254,-4675.54,0.00020273,2]
[375765885,1753734643263,-460.0,0.00020273,2]
[375765887,1753734643272,-460.0,0.00020273,2]
[375765889,1753734643282,-1258.53,0.00020273,2]
[375765891,1753734643293,-460.0,0.00020273,2]
[375765892,1753734643303,-460.0,0.00020273,2]
[375765895,1753734643315,-460.0,0.00020273,2]
[375765896,1753734643326,-460.0,0.00020273,2]
[375765898,1753734643336,-460.0,0.00020273,2]
[375765900,1753734643346,-1755.01,0.00020273,2]
[375765902,1753734643356,-460.0,0.00020273,2]
[375765904,1753734643366,-460.0,0.00020273,2]
[375765906,1753734643376,-460.0,0.00020273,2]
[375765908,1753734643386,-460.0,0.00020273,2]
[375765910,1753734643395,-460.0,0.00020273,2]
[375765913,1753734643408,-460.0,0.00020273,2]
[375765915,1753734643417,-460.0,0.00020273,2]
[375765916,1753734643427,-460.0,0.00020273,2]
[375765918,1753734643436,-558.96,0.00020273,2]
[375765921,1753734643447,-1282.88,0.00020273,2]
[375765922,1753734643456,-460.0,0.00020273,2]
[375765924,1753734643466,-886.06,0.00020273,2]
[375765926,1753734643476,-460.0,0.00020273,2]
[375765928,1753734643486,-460.0,0.00020273,2]
[375765930,1753734643496,-460.0,0.00020273,2]
[375765931,1753734643505,-1224.61,0.00020273,2]
[375765932,1753734643516,-460.0,0.00020273,2]
[375765933,1753734643527,-460.0,0.00020273,2]
[375765934,1753734643536,-1200.95,0.00020273,2]
[375765935,1753734643548,-460.0,0.00020273,2]
[375765936,1753734643558,-460.0,0.00020273,2]
[375765937,1753734643570,-460.0,0.00020273,2]
[375765938,1753734643579,-460.0,0.00020273,2]
[375765939,1753734643589,-1270.16,0.00020273,2]
[375765940,1753734643599,-801.31,0.00020273,2]
[375765941,1753734643608,-460.0,0.00020273,2]
[375765942,1753734643618,-460.0,0.00020273,2]
[375765943,1753734643627,-460.0,0.00020273,2]
[375765944,1753734643637,-460.0,0.00020273,2]
[375765945,1753734643646,-460.0,0.00020273,2]
[375765946,1753734643655,-460.0,0.00020273,2]
[375765947,1753734643665,-1849.9,0.00020273,2]
[375765948,1753734643675,-460.0,0.00020273,2]
[375765949,1753734643685,-460.0,0.00020273,2]
[375765950,1753734643694,-460.0,0.00020273,2]
[375765951,1753734643703,-460.0,0.00020273,2]
[375765952,1753734643713,-500.0,0.00020508,2]
[375765953,1753734643723,-1000.0,0.00020521,2]
[375765954,1753734643733,-1000.0,0.00020521,2]
[375765955,1753734643746,-1612.46293544,0.00020533,2]
[375765956,1753734643756,-460.0,0.00020547,2]
[375765957,1753734643765,-460.0,0.00020547,2]
[375765958,1753734643775,-1512.42,0.00020547,2]
[375765959,1753734643786,-460.0,0.00020547,2]
[375765960,1753734643795,-460.0,0.00020547,2]
[375765961,1753734643805,-452.12,0.00020547,2]
[375765962,1753734643817,-460.0,0.00020547,2]
[375765963,1753734643829,-169.9,0.00020547,2]
[375765964,1753734643838,-460.0,0.00020547,2]
[375765965,1753734643848,-460.0,0.00020547,2]
[375765966,1753734643858,-2531.55,0.00020547,2]
[375765967,1753734643867,-460.0,0.00020547,2]
[375765968,1753734643878,-460.0,0.00020547,2]
[375765969,1753734643887,-460.0,0.00020547,2]
[375765970,1753734643898,-460.0,0.00020547,2]
[375765972,1753734643908,-460.0,0.00020547,2]
[375765974,1753734643918,-475.06,0.00020547,2]
[375765976,1753734643928,-4675.54,0.00020547,2]
[375765978,1753734643940,-460.0,0.00020547,2]
[375765980,1753734643951,-460.0,0.00020547,2]
[375765982,1753734643961,-1258.53,0.00020547,2]
[375765984,1753734643970,-460.0,0.00020547,2]
[375765986,1753734643979,-460.0,0.00020547,2]
[375765988,1753734643988,-460.0,0.00020547,2]
[375765990,1753734643998,-490.22,0.00020547,2]
[375765992,1753734644008,-460.0,0.00020547,2]
[375765994,1753734644018,-1755.01,0.00020547,2]
[375765996,1753734644027,-460.0,0.00020547,2]
[375765998,1753734644037,-460.0,0.00020547,2]
[375766000,1753734644046,-460.0,0.00020547,2]
[375766001,1753734644057,-460.0,0.00020547,2]
[375766003,1753734644071,-460.0,0.00020547,2]
[375766005,1753734644081,-460.0,0.00020547,2]
[375766007,1753734644092,-460.0,0.00020547,2]
[375766009,1753734644102,-460.0,0.00020547,2]
[375766011,1753734644112,-558.96,0.00020547,2]
[375766013,1753734644122,-1282.88,0.00020547,2]
[375766015,1753734644132,-460.0,0.00020547,2]
[375766017,1753734644142,-886.06,0.00020547,2]
[375766019,1753734644152,-460.0,0.00020547,2]
[375766021,1753734644161,-460.0,0.00020547,2]
[375766023,1753734644171,-460.0,0.00020547,2]
[375766025,1753734644180,-1224.61,0.00020547,2]
[375766027,1753734644191,-460.0,0.00020547,2]
[375766029,1753734644200,-460.0,0.00020547,2]
[375766031,1753734644210,-1200.95,0.00020547,2]
[375766033,1753734644220,-460.0,0.00020547,2]
[375766035,1753734644230,-460.0,0.00020547,2]
[375766037,1753734644240,-460.0,0.00020547,2]
[375766039,1753734644250,-460.0,0.00020547,2]
[375766041,1753734644260,-1270.16,0.00020547,2]
[375766043,1753734644270,-801.31,0.00020547,2]
[375766045,1753734644280,-551.85639474,0.00020547,2]
[375766047,1753734644290,-460.0,0.00020547,2]
[375766049,1753734644300,-460.0,0.00020547,2]
[375766051,1753734644319,-460.0,0.00020547,2]
[375766055,1753734644335,-460.0,0.00020547,2]
[375766057,1753734644345,-460.0,0.00020547,2]
[375766059,1753734644356,-1849.9,0.00020547,2]
[375766061,1753734644367,-460.0,0.00020547,2]
[375766063,1753734644376,-460.0,0.00020547,2]
[375766065,1753734644387,-460.0,0.00020547,2]
[375766067,1753734644397,-460.0,0.00020547,2]
[375766069,1753734644407,-600.0,0.00020644,2]
[375766071,1753734644418,-1073.36,0.00020812,3]
[375766073,1753734644428,-536.68,0.00020812,3]
[375766075,1753734644438,-460.0,0.00020821,2]
[375766077,1753734644448,-460.0,0.00020821,2]
[375766079,1753734644459,-1512.42,0.00020821,2]
[375766081,1753734644468,-460.0,0.00020821,2]
[375766083,1753734644479,-460.0,0.00020821,2]
[375766085,1753734644489,-522.45,0.00020821,2]
[375766087,1753734644499,-460.0,0.00020821,2]
[375766089,1753734644510,-460.0,0.00020821,2]
[375766091,1753734644521,-2531.55,0.00020821,2]
[375766093,1753734644532,-460.0,0.00020821,2]
[375766095,1753734644542,-460.0,0.00020821,2]
[375766097,1753734644552,-460.0,0.00020821,2]
[375766099,1753734644563,-460.0,0.00020821,2]
[375766101,1753734644575,-460.0,0.00020821,2]
[375766103,1753734644584,-475.06,0.00020821,2]
[375766105,1753734644594,-460.0,0.00020821,2]
[375766107,1753734644604,-4675.54,0.00020821,2]
[375766109,1753734644614,-460.0,0.00020821,2]
[375766111,1753734644625,-1258.53,0.00020821,2]
[375766113,1753734644635,-460.0,0.00020821,2]
[375766115,1753734644645,-460.0,0.00020821,2]
[375766117,1753734644655,-460.0,0.00020821,2]
[375766120,1753734644666,-299.72,0.00020821,2]
[375766121,1753734644676,-1755.01,0.00020821,2]
[375766123,1753734644686,-460.0,0.00020821,2]
[375766126,1753734644696,-192.31603521,0.00020821,2]
[375766127,1753734644706,-460.0,0.00020821,2]
[375766130,1753734644717,-460.0,0.00020821,2]
[375766131,1753734644727,-460.0,0.00020821,2]
[375766133,1753734644739,-460.0,0.00020821,2]
[375766135,1753734644753,-460.0,0.00020821,2]
[375766137,1753734644763,-460.0,0.00020821,2]
[375766140,1753734644773,-558.96,0.00020821,2]
[375766142,1753734644782,-1282.88,0.00020821,2]
[375766144,1753734644794,-886.06,0.00020821,2]
[375766146,1753734644803,-460.0,0.00020821,2]
[375766148,1753734644815,-460.0,0.00020821,2]
[375766150,1753734644827,-460.0,0.00020821,2]
[375766152,1753734644839,-1224.61,0.00020821,2]
[375766154,1753734644848,-460.0,0.00020821,2]
[375766156,1753734644858,-460.0,0.00020821,2]
[375766158,1753734644869,-1200.95,0.00020821,2]
[375766160,1753734644880,-460.0,0.00020821,2]
[375766162,1753734644889,-460.0,0.00020821,2]
[375766164,1753734644899,-460.0,0.00020821,2]
[375766166,1753734644909,-460.0,0.00020821,2]
[375766167,1753734644919,-1270.16,0.00020821,2]
[375766170,1753734644928,-801.31,0.00020821,2]
[375766171,1753734644938,-460.0,0.00020821,2]
[375766173,1753734644947,-460.0,0.00020821,2]
[375766175,1753734644957,-460.0,0.00020821,2]
[375766177,1753734644967,-460.0,0.00020821,2]
[375766179,1753734644977,-1849.9,0.00020821,2]
[375766182,1753734644987,-460.0,0.00020821,2]
[375766184,1753734644997,-460.0,0.00020821,2]
[375766186,1753734645007,-460.0,0.00020821,2]
[375766188,1753734645016,-460.0,0.00020821,2]
[375766190,1753734645026,-420.0,0.00020899,2]
[375766192,1753734645036,-500.0,0.00020973,2]
[375766194,1753734645046,-160.0,0.00021,2]
[375766196,1753734645057,-1003.59439869,0.00021068,2]
[375766198,1753734645069,-460.0,0.00021095,2]
[375766199,1753734645079,-460.0,0.00021095,2]
[375766202,1753734645089,-1512.42,0.00021095,2]
[375766204,1753734645099,-460.0,0.00021095,2]
[375766206,1753734645109,-230.2,0.00021095,2]
[375766208,1753734645120,-460.0,0.00021095,2]
[375766210,1753734645130,-460.0,0.00021095,2]
[375766212,1753734645139,-2531.55,0.00021095,2]
[375766214,1753734645149,-460.0,0.00021095,2]
[375766215,1753734645159,-196.00371425,0.00021095,2]
[375766218,1753734645170,-460.0,0.00021095,2]
[375766220,1753734645180,-460.0,0.00021095,2]
[375766222,1753734645190,-592.9,0.00021095,2]
[375766224,1753734645199,-475.06,0.00021095,2]
[375766226,1753734645208,-460.0,0.00021095,2]
[375766228,1753734645218,-4675.54,0.00021095,2]
[375766229,1753734645228,-460.0,0.00021095,2]
[375766231,1753734645238,-1258.53,0.00021095,2]
[375766234,1753734645248,-460.0,0.00021095,2]
[375766235,1753734645258,-460.0,0.00021095,2]
[375766237,1753734645267,-460.0,0.00021095,2]
[375766239,1753734645277,-1755.01,0.00021095,2]
[375766241,1753734645287,-460.0,0.00021095,2]
[375766243,1753734645298,-460.0,0.00021095,2]
[375766245,1753734645309,-460.0,0.00021095,2]
[375766248,1753734645321,-460.0,0.00021095,2]
[375766250,1753734645331,-460.0,0.00021095,2]
[375766252,1753734645341,-460.0,0.00021095,2]
[375766254,1753734645350,-460.0,0.00021095,2]
[375766256,1753734645360,-558.96,0.00021095,2]
[375766258,1753734645370,-1282.88,0.00021095,2]
[375766260,1753734645380,-886.06,0.00021095,2]
[375766261,1753734645390,-460.0,0.00021095,2]
[375766263,1753734645399,-460.0,0.00021095,2]
[375766266,1753734645409,-460.0,0.00021095,2]
[375766267,1753734645419,-1224.61,0.00021095,2]
[375766270,1753734645429,-460.0,0.00021095,2]
[375766272,1753734645439,-460.0,0.00021095,2]
[375766273,1753734645448,-1200.95,0.00021095,2]
[375766276,1753734645459,-460.0,0.00021095,2]
[375766277,1753734645468,-460.0,0.00021095,2]
[375766280,1753734645480,-460.0,0.00021095,2]
[375766282,1753734645489,-460.0,0.00021095,2]
[375766284,1753734645499,-1270.16,0.00021095,2]
[375766286,1753734645508,-801.31,0.00021095,2]
[375766287,1753734645518,-460.0,0.00021095,2]
[375766289,1753734645528,-460.0,0.00021095,2]
[375766292,1753734645538,-460.0,0.00021095,2]
[375766293,1753734645547,-460.0,0.00021095,2]
[375766296,1753734645559,-1849.9,0.00021095,2]
[375766297,1753734645571,-460.0,0.00021095,2]
[375766300,1753734645581,-460.0,0.00021095,2]
[375766302,1753734645591,-460.0,0.00021095,2]
[375766303,1753734645601,-460.0,0.00021095,2]
[375766306,1753734645611,-196.55369868,0.00021142,2]
[375766307,1753734645620,-303.0,0.00021191,4]
[375766310,1753734645631,-460.0,0.00021369,2]
[375766312,1753734645641,-460.0,0.00021369,2]
[375766314,1753734645651,-1512.42,0.00021369,2]
[375766316,1753734645661,-460.0,0.00021369,2]
[375766317,1753734645671,-460.0,0.00021369,2]
[375766319,1753734645682,-358.28,0.00021369,2]
[375766321,1753734645692,-2531.55,0.00021369,2]
[375766323,1753734645702,-460.0,0.00021369,2]
[375766325,1753734645712,-460.0,0.00021369,2]
[375766327,1753734645721,-607.54,0.00021369,2]
[375766329,1753734645731,-475.06,0.00021369,2]
[375766331,1753734645746,-460.0,0.00021369,2]
[375766333,1753734645756,-4675.54,0.00021369,2]
[375766335,1753734645765,-460.0,0.00021369,2]
[375766337,1753734645775,-1258.53,0.00021369,2]
[375766339,1753734645786,-460.0,0.00021369,2]
[375766341,1753734645796,-460.0,0.00021369,2]
[375766343,1753734645806,-460.0,0.00021369,2]
[375766345,1753734645816,-1755.01,0.00021369,2]
[375766347,1753734645827,-460.0,0.00021369,2]
[375766349,1753734645837,-460.0,0.00021369,2]
[375766351,1753734645847,-460.0,0.00021369,2]
[375766353,1753734645857,-460.0,0.00021369,2]
[375766355,1753734645867,-460.0,0.00021369,2]
[375766357,1753734645876,-460.0,0.00021369,2]
[375766359,1753734645886,-558.96,0.00021369,2]
[375766361,1753734645897,-1282.88,0.00021369,2]
[375766363,1753734645906,-886.06,0.00021369,2]
[375766365,1753734645916,-460.0,0.00021369,2]
[375766368,1753734645928,-470.81920337,0.00021369,2]
[375766369,1753734645938,-460.0,0.00021369,2]
[375766371,1753734645948,-1224.61,0.00021369,2]
[375766373,1753734645958,-460.0,0.00021369,2]
[375766376,1753734645967,-460.0,0.00021369,2]
[375766378,1753734645977,-1200.95,0.00021369,2]
[375766380,1753734645987,-460.0,0.00021369,2]
[375766399,1753734645997,-460.0,0.00021369,2]
[375766401,1753734646156,-460.0,0.00021369,2]
[375766404,1753734646167,-460.0,0.00021369,2]
[375766406,1753734646176,-1270.16,0.00021369,2]
[375766408,1753734646186,-801.31,0.00021369,2]
[375766410,1753734646196,-460.0,0.00021369,2]
[375766412,1753734646205,-460.0,0.00021369,2]
[375766414,1753734646214,-460.0,0.00021369,2]
[375766416,1753734646224,-460.0,0.00021369,2]
[375766418,1753734646233,-1849.9,0.00021369,2]
[375766420,1753734646243,-460.0,0.00021369,2]
[375766422,1753734646252,-460.0,0.00021369,2]
[375766424,1753734646263,-526.66642539,0.00021369,2]
[375766426,1753734646273,-526.58819812,0.00021375,2]
[375766427,1753734646283,-160.0,0.00021375,2]
[375766429,1753734646293,-160.0,0.00021375,2]
[375766431,1753734646302,-160.0,0.00021375,2]
[375766433,1753734646312,-160.0,0.00021375,2]
[375766435,1753734646323,-840.90880427,0.00021375,2]
[375766438,1753734646333,-214.87999826,0.00021375,2]
[375766440,1753734646343,-312.16666667,0.00021375,2]
[375766442,1753734646352,-160.0,0.00021375,2]
[375766444,1753734646362,-454.6043428,0.00021375,2]
[375766445,1753734646372,-12634.73134317,0.00021375,2]
[375766446,1753734646382,-160.0,0.00021375,2]
[375766447,1753734646392,-160.0,0.00021375,2]
[375766448,1753734646403,-160.0,0.00021375,2]
[375766449,1753734646413,-231.34820253,0.00021375,2]
[375766450,1753734646422,-216.06083566,0.00021375,2]
[375766451,1753734646431,-160.0,0.00021377,2]
[375766452,1753734646440,-13897.76003173,0.000214,2]
[375766453,1753734646450,-200.0,0.00021478,15]
[375766454,1753734646460,-200.0,0.00021478,15]
[375766456,1753734646469,-200.0,0.00021478,15]
[375766458,1753734646479,-200.0,0.00021478,15]
[375766460,1753734646489,-320.0,0.00021478,15]
[375766462,1753734646499,-1000.0,0.00021521,2]
[375766465,1753734646509,-260.0,0.00021548,2]
[375766468,1753734646519,-178.917,0.00021639,2]
[375766471,1753734646528,-1741.681,0.00021639,2]
[375766474,1753734646538,-303.0,0.0002164,4]
[375766477,1753734646548,-460.0,0.00021643,2]
[375766481,1753734646557,-460.0,0.00021643,2]
[375766485,1753734646567,-1512.42,0.00021643,2]
[375766489,1753734646577,-460.0,0.00021643,2]